bitfinex-derivatives/quotes_ETHF0:USTF0_20241207
["timestamp","ask_amount","ask_price","bid_price","bid_amount"]
[1733561320731,2.94284267,3983.0,3982.9,0.1755]
[1733561321533,2.94284267,3983.1,3983.0,0.17549]
[1733561321739,2.94284267,3983.1,3983.0,0.37936341]
[1733561322534,0.3888,3983.5,3983.0,4.14460462]
[1733561322732,4.51785907,3983.6,3983.1,4.7135215]
[1733561322939,4.51785907,3983.6,3983.5,0.17547]
[1733561323235,4.51785907,3983.6,3983.5,0.37932986]
[1733561323236,3.2078,3983.6,3983.5,0.37932986]
[1733561324232,3.2078,3983.6,3983.5,0.37931133]
[1733561329839,3.2078,3983.6,3983.5,0.17547]
[1733561332634,0.3782,3983.9,3983.8,0.17546]
[1733561336735,0.3782,3983.9,3983.8,0.25385488]
[1733561340945,0.3782,3983.9,3983.8,0.17546]
[1733561341144,0.55365,3983.9,3983.8,0.25385636]
[1733561341545,0.55365,3983.9,3983.8,0.07839636]
[1733561343545,0.3782,3983.9,3983.8,0.17545]
[1733561343747,0.17548,3983.3,3983.1,0.17548]
[1733561343942,0.17548,3983.3,3983.2,0.1254551]
[1733561344250,0.17547,3983.4,3983.2,0.3009351]
[1733561344452,0.17547,3983.4,3983.3,0.1254551]
[1733561344847,4.11585907,3983.5,3983.1,0.7764]
[1733561345046,0.17548,3983.2,3983.1,0.95188]
[1733561345247,0.4127,3983.4,3983.1,0.7764]
[1733561345450,0.17548,3983.2,3983.1,0.3828]
[1733561345650,0.17548,3983.1,3982.8,40.9755]
[1733561345951,0.17549,3982.9,3982.8,40.8]
[1733561346248,0.1755,3982.7,3982.6,0.1755]
[1733561346644,0.17551,3982.6,3982.5,0.4081]
[1733561346944,0.17551,3982.5,3982.4,3.38331]
[1733561347352,0.17551,3982.5,3982.4,3.2078]
[1733561347553,1.08356907,3982.6,3982.4,3.38331]
[1733561348152,1.08356907,3982.6,3982.4,3.2078]
[1733561348340,0.8265,3982.8,3982.7,0.1755]
[1733561348543,2.94284267,3983.3,3982.8,0.1755]
[1733561348544,0.1755,3982.9,3982.8,0.1755]
[1733561348750,0.3813,3983.4,3983.1,0.17548]
[1733561349051,0.17548,3983.3,3983.2,0.17548]
[1733561349749,1.28935907,3983.4,3982.8,0.8005]
[1733561350051,0.17549,3983.0,3982.9,0.17549]
[1733561350647,0.17551,3982.6,3982.5,0.56811]
[1733561350848,0.17551,3982.6,3982.5,0.69357166]
[1733561351155,0.17551,3982.6,3982.5,0.3926]
[1733561351852,0.17551,3982.6,3982.5,0.67490098]
[1733561352055,0.17551,3982.6,3982.5,0.28230098]
[1733561352449,0.17551,3982.6,3982.5,0.1254671]
[1733561354354,0.17551,3982.6,3982.2,45.33105121]
[1733561354355,1.31765907,3982.8,3982.2,45.33105121]
[1733561354549,0.17552,3982.3,3982.2,45.33105121]
[1733561354746,0.17552,3982.3,3982.2,45.61337092]
[1733561355161,0.58282,3982.4,3982.3,0.17552]
[1733561355362,0.4073,3982.4,3982.3,0.45783971]
[1733561355658,0.58281,3982.4,3982.3,0.36074212]
[1733561358153,0.58281,3982.4,3982.3,0.20389784]
[1733561358354,0.58281,3982.4,3982.3,0.37941784]
[1733561358550,0.58281,3982.4,3982.3,0.20389784]
[1733561358958,0.58281,3982.4,3982.3,0.37941784]
[1733561359152,0.58281,3982.4,3982.3,0.36074167]
[1733561359458,0.4073,3982.4,3982.3,4.30147288]
[1733561359655,0.58281,3982.4,3982.3,0.07842241]
[1733561359859,0.58281,3982.4,3981.7,0.4104]
[1733561359860,0.17554,3981.8,3981.7,0.4104]
[1733561360157,1.08359907,3981.8,3981.7,0.4104]
[1733561360552,0.399,3981.9,3981.7,0.4104]
[1733561360859,4.11585907,3982.0,3981.9,0.17554]
[1733561361261,0.90805907,3982.0,3981.9,0.17554]
[1733561362666,1.08358907,3982.0,3981.9,0.17554]
[1733561362866,0.17554,3981.9,3981.8,0.17554]
[1733561363067,1.08358907,3982.0,3981.8,0.17554]
[1733561364061,0.90805907,3982.0,3981.8,0.17554]
[1733561364265,0.17554,3981.9,3981.8,0.17554]
[1733561364462,0.90805907,3982.0,3981.7,0.4104]
[1733561364669,0.55814,3981.9,3981.8,0.17554]
[1733561366673,0.55814,3981.9,3981.8,4.11627121]
[1733561367071,0.55814,3981.9,3981.8,4.3986299]
[1733561367780,0.55814,3981.9,3981.8,0.45789869]
[1733561367974,0.3826,3981.9,3981.8,4.3986299]
[1733561368274,0.3924,3982.3,3981.9,0.17554]
[1733561368275,1.08357907,3982.3,3981.9,0.17554]
[1733561368481,1.08357907,3982.3,3982.0,4.21407277]
[1733561368674,1.08357907,3982.3,3982.2,0.17552]
[1733561368870,1.08357907,3982.3,3982.2,0.12549275]
[1733561369073,1.08357907,3982.3,3982.2,0.50319275]
[1733561369273,0.90805907,3982.3,3982.2,0.50319275]
[1733561369469,0.90805907,3982.3,3982.2,0.83556844]
[1733561369674,0.90805907,3982.6,3982.2,4.59176252]
[1733561369880,0.90805907,3982.6,3982.5,0.17551]
[1733561370082,0.90805907,3982.6,3982.5,0.45785844]
[1733561371791,0.90805907,3982.6,3982.5,0.53627688]
[1733561371983,0.90805907,3982.6,3982.5,0.61469531]
[1733561372276,0.90805907,3982.6,3982.5,0.61469598]
[1733561372883,0.90805907,3982.6,3982.5,0.17551]
[1733561373183,0.90805907,3982.6,3982.5,0.45782143]
[1733561373382,4.29134907,3982.9,3982.8,0.1755]
[1733561373588,4.29134907,3982.9,3982.8,0.53623128]
[1733561374186,4.29134907,3982.9,3982.8,0.53622523]
[1733561374394,4.29134907,3982.9,3982.8,0.20389159]
[1733561374678,4.11585907,3982.9,3982.8,0.20388462]
[1733561374885,1.08354907,3982.9,3982.8,0.20388462]
[1733561375183,1.08354907,3982.9,3982.8,0.1755]
[1733561375384,1.08354907,3982.9,3982.8,0.20388446]
[1733561375683,1.08354907,3982.9,3982.8,0.37938446]
[1733561376388,0.90805907,3982.9,3982.8,0.53621816]
[1733561377183,3.9925,3983.3,3982.8,0.36071816]
[1733561377385,4.52555907,3983.3,3983.2,0.17548]
[1733561377589,3.2078,3983.3,3983.2,0.37936446]
[1733561377783,3.2078,3983.3,3983.2,0.61458756]
[1733561378179,3.2078,3983.3,3983.2,0.17548]
[1733561378484,3.2078,3983.3,3983.2,0.53614544]
[1733561378682,0.90805907,3983.4,3983.2,0.36066544]
[1733561378891,0.90805907,3983.4,3983.3,0.53613544]
[1733561380285,0.17545,3983.8,3983.3,0.53613544]
[1733561380286,0.90805907,3983.7,3983.3,0.36066544]
[1733561380485,0.90805907,3983.7,3983.6,0.17546]
[1733561380686,1.08351907,3983.7,3983.6,0.20385438]
[1733561381087,1.08351907,3983.7,3983.6,0.20385122]
[1733561381283,1.08351907,3983.7,3983.6,0.07840553]
[1733561381686,1.08351907,3983.7,3983.6,0.07840889]
[1733561381882,5.00778786,3983.7,3983.6,0.07840889]
[1733561382093,0.90805907,3983.7,3982.9,1.207]
[1733561382285,0.90805907,3983.2,3983.1,0.17548]
[1733561382989,3.84588289,3983.7,3983.5,0.17547]
[1733561383193,3.84588289,3983.7,3983.6,0.17546]
[1733561384288,0.90805907,3983.7,3983.6,0.17546]
[1733561384586,0.90805907,3983.7,3982.9,1.207]
[1733561384587,3.84588289,3983.7,3982.9,1.207]
[1733561384788,3.84588289,3983.7,3983.4,0.17547]
[1733561384984,3.84588289,3983.7,3983.5,0.7801]
[1733561385188,3.84588289,3983.7,3983.5,0.95556]
[1733561385388,0.90805907,3983.7,3983.5,0.95556]
[1733561385587,3.84588289,3983.7,3983.5,0.7801]
[1733561385789,0.90805907,3983.7,3983.6,0.4024]
[1733561386186,0.90805907,3983.7,3983.6,0.57786]
[1733561386381,0.90805907,3983.7,3983.6,0.4024]
[1733561386884,0.90805907,3983.7,3983.6,0.57786]
[1733561387682,3.84588289,3983.7,3983.6,0.57786]
[1733561387886,3.84588289,3983.7,3983.6,0.4024]
[1733561388100,4.02134289,3983.7,3983.6,0.4024]
[1733561388593,7.22914289,3983.7,3983.6,0.4024]
[1733561389290,7.22914289,3983.7,3983.6,0.48080334]
[1733561389889,4.29131907,3983.7,3983.6,0.48080334]
[1733561392291,4.29131907,3983.7,3983.6,0.65626334]
[1733561392492,4.29131907,3983.7,3983.6,0.48080334]
[1733561393497,4.29131907,3983.7,3983.6,0.65626334]
[1733561394193,4.29131907,3983.7,3983.6,0.48080334]
[1733561394590,4.29131907,3983.7,3983.6,0.65626334]
[1733561394791,4.11585907,3983.7,3983.6,0.65626334]
[1733561394990,4.11585907,3983.7,3983.6,0.78170795]
[1733561395599,4.11585907,3983.7,3983.6,0.70330461]
[1733561395800,4.11585907,3983.7,3983.6,0.57786]
[1733561395997,4.11585907,3983.7,3983.6,0.78170697]
[1733561396597,0.90805907,3983.7,3983.6,0.78170697]
[1733561397401,0.90805907,3983.7,3983.6,0.93850274]
[1733561398698,0.90805907,3983.7,3983.6,4.94861243]
[1733561399007,0.90805907,3983.7,3983.6,1.00767065]
[1733561399898,0.90805907,3983.7,3983.6,4.93938473]
[1733561400403,3.76294,3984.1,3984.0,0.17544]
[1733561400592,3.76294,3984.1,3984.0,0.37928697]
[1733561401402,3.76294,3984.1,3984.0,0.17544]
[1733561401702,3.5875,3984.1,3984.0,0.37926783]
[1733561402200,4.49555907,3984.1,3984.0,0.20382783]
[1733561402399,4.67099907,3984.1,3984.0,0.20382783]
[1733561404208,4.49555907,3984.1,3983.5,4.31011408]
[1733561404412,0.90805907,3983.7,3983.6,0.70875198]
[1733561404601,0.90805907,3983.7,3983.6,0.63035599]
[1733561404796,0.90805907,3983.7,3983.6,0.63035611]
[1733561407219,0.90805907,3983.7,3983.6,0.75579022]
[1733561407908,0.17545,3983.9,3983.8,0.17545]
[1733561408101,0.90805907,3984.0,3983.8,0.07839611]
[1733561408309,1.08350907,3984.0,3983.9,0.25384611]
[1733561410412,4.02132289,3984.0,3983.9,0.25384611]
[1733561410810,3.84588289,3984.0,3983.9,0.17545]
[1733561411110,0.90805907,3984.0,3983.9,0.25384501]
[1733561411309,3.84588289,3984.0,3983.9,0.25384501]
[1733561411705,3.84588289,3984.0,3983.9,0.33223938]
[1733561411909,3.84588289,3984.0,3983.9,0.25384446]
[1733561412209,0.90805907,3984.0,3983.9,0.33223892]
[1733561412404,0.90805907,3984.0,3983.9,0.45767006]
[1733561412604,0.90805907,3984.0,3983.9,0.61445898]
[1733561413408,1.08349907,3984.0,3983.9,0.61445898]
[1733561415308,0.90805907,3984.0,3983.9,4.18555854]
[1733561415505,1.08349907,3984.0,3983.9,4.54617643]
[1733561415705,0.90805907,3984.0,3983.9,4.54617643]
[1733561416110,1.08349907,3984.0,3983.9,4.54617643]
[1733561416312,1.08349907,3984.0,3983.9,0.36061789]
[1733561417106,0.90805907,3984.0,3983.9,4.54617824]
[1733561417321,0.90805907,3984.0,3983.9,5.16370598]
[1733561418411,0.90805907,3984.0,3983.9,11.07152838]
[1733561418608,0.17544,3984.1,3984.0,0.17544]
[1733561418810,0.17544,3984.1,3984.0,4.55459588]
[1733561419011,0.17544,3984.1,3984.0,4.37915588]
[1733561419215,3.38324,3984.1,3984.0,4.30076296]
[1733561419416,3.38324,3984.1,3984.0,4.01854026]
[1733561420207,3.38324,3984.1,3984.0,0.07839519]
[1733561420408,7.30033842,3984.1,3984.0,0.07839519]
[1733561422521,3.38324,3984.1,3984.0,0.25383519]
[1733561422718,3.38324,3984.1,3984.0,0.07839519]
[1733561423222,7.31128282,3984.1,3984.0,0.07839519]
[1733561423522,3.38324,3984.1,3984.0,0.07839519]
[1733561423715,7.13650419,3984.1,3984.0,0.25383519]
[1733561424013,7.13650419,3984.1,3984.0,0.37926595]
[1733561424423,3.2078,3984.1,3984.0,0.75546595]
[1733561425415,3.2078,3984.1,3984.0,0.55164]
[1733561425610,3.2078,3984.1,3984.0,0.7554598]
[1733561426618,3.2078,3984.1,3984.0,1.66351887]
[1733561426818,6.15454909,3984.1,3984.0,1.898694]
[1733561427118,3.2078,3984.1,3984.0,25.42240092]
[1733561427910,1.28835907,3984.6,3984.5,0.17542]
[1733561428119,1.46377907,3984.6,3984.5,11.00718594]
[1733561428313,1.46377907,3984.6,3984.5,5.16923264]
[1733561429020,3.2078,3984.9,3984.5,12.88226274]
[1733561429321,3.2078,3984.9,3984.8,0.17541]
[1733561429517,3.2078,3984.9,3984.8,5.16922264]
[1733561430317,1.08345907,3985.0,3984.8,4.99381264]
[1733561430622,0.90805907,3985.0,3984.9,5.16920363]
[1733561431112,0.90805907,3985.0,3984.9,11.00194212]
[1733561431321,0.90805907,3985.0,3984.9,10.99801473]
[1733561432321,0.90805907,3985.0,3984.9,10.99793897]
[1733561433122,0.90805907,3985.0,3984.9,5.08682522]
[1733561434222,0.90805907,3985.0,3984.9,0.53592746]
[1733561434528,0.90805907,3985.0,3984.9,0.1754]
[1733561434923,5.01216326,3985.0,3984.9,0.1754]
[1733561435122,1.08345907,3985.0,3984.9,0.1754]
[1733561436125,0.90805907,3985.0,3984.9,0.1754]
[1733561438018,1.08345907,3985.0,3984.9,0.1754]
[1733561438325,0.90805907,3985.0,3984.9,0.1754]
[1733561438525,3.8495068,3985.0,3984.9,0.1754]
[1733561439224,4.0249068,3985.0,3984.9,0.1754]
[1733561439731,3.8495068,3985.0,3984.9,0.1754]
[1733561441734,3.8495068,3985.0,3984.9,0.53591825]
[1733561442232,0.90805907,3985.0,3984.9,5.08346287]
[1733561442735,0.4081,3985.1,3984.9,5.08346287]
[1733561442736,0.4081,3985.1,3984.9,4.98643142]
[1733561443033,4.11585907,3985.3,3985.2,0.17539]
[1733561443233,4.11585907,3985.3,3985.2,4.92638822]
[1733561443737,4.11585907,3985.3,3985.2,5.34068822]
[1733561444334,4.11585907,3985.3,3985.2,5.34022538]
[1733561445329,4.11585907,3985.3,3985.2,5.33981474]
[1733561446037,4.11585907,3985.3,3985.2,0.79345887]
[1733561446239,4.11585907,3985.3,3985.2,4.72833566]
[1733561446533,4.11585907,3985.3,3985.2,0.79345887]
[1733561446931,3.2078,3985.3,3985.2,4.72805263]
[1733561447236,3.2078,3985.3,3985.2,5.49762316]
[1733561447535,3.2078,3985.3,3985.2,12.19638884]
[1733561449435,3.2078,3985.3,3985.2,1.74498282]
[1733561449835,3.2078,3985.3,3985.2,1.38449]
[1733561450842,0.3787,3985.4,3985.2,1.28746532]
[1733561451030,0.3787,3985.4,3985.3,0.25375532]
[1733561453040,0.3787,3985.4,3985.3,0.25375256]
[1733561454038,0.3787,3985.4,3985.3,0.17539]
[1733561454238,0.3787,3985.4,3985.3,0.25375291]
[1733561454641,0.55408,3985.4,3985.3,0.25375291]
[1733561456643,0.55408,3985.4,3985.3,0.17539]
[1733561456843,0.55408,3985.4,3985.3,0.53586041]
[1733561457041,0.3787,3985.4,3985.3,0.61422336]
[1733561457436,0.3787,3985.4,3985.3,5.15859717]
[1733561457937,0.17538,3985.6,3985.5,0.17538]
[1733561458243,0.17538,3985.6,3985.5,0.61421336]
[1733561459734,0.17538,3985.6,3985.5,0.17538]
[1733561459939,0.17538,3985.6,3985.5,0.28210493]
[1733561460139,0.17538,3985.6,3985.5,0.43882989]
[1733561460949,0.17538,3985.6,3985.5,0.36046741]
[1733561461440,0.17538,3985.6,3985.5,0.20374245]
[1733561461635,0.17538,3985.6,3985.5,0.36047898]
[1733561462252,0.17537,3985.6,3985.5,0.36048597]
[1733561462756,0.17537,3985.6,3985.5,0.20375294]
[1733561463744,0.17537,3985.6,3985.5,0.36048866]
[1733561463948,1.08342907,3985.6,3985.5,0.36048866]
[1733561464954,1.08342907,3985.6,3985.5,0.20375294]
[1733561465552,1.08342907,3985.6,3985.5,0.20375425]
[1733561466346,1.08342907,3985.6,3985.5,0.36048775]
[1733561469259,1.08342907,3985.6,3985.5,4.29223872]
[1733561469746,4.29122907,3985.6,3985.5,4.29223872]
[1733561470156,4.29122907,3985.6,3985.5,4.54598484]
[1733561470456,4.29122907,3985.6,3985.5,4.37756366]
[1733561470751,4.29122907,3985.6,3985.5,0.43885387]
[1733561470946,4.29122907,3985.6,3985.5,4.99125646]
[1733561471945,4.29122907,3985.6,3985.5,4.88451573]
[1733561472150,4.29122907,3985.6,3985.5,10.71011529]
[1733561472352,8.21993326,3985.6,3985.5,0.25374702]
[1733561472945,4.29122907,3985.6,3985.5,0.25374702]
[1733561473150,8.21993326,3985.6,3985.5,0.25374702]
[1733561473347,8.04456326,3985.6,3985.5,0.25374702]
[1733561473856,8.21993326,3985.6,3985.5,0.25374702]
[1733561475051,8.04456326,3985.6,3985.5,0.25374702]
[1733561475751,8.21993326,3985.6,3985.5,0.17538]
[1733561475947,8.21993326,3985.6,3985.5,0.253744]
[1733561476147,4.29122907,3985.6,3985.5,0.253744]
[1733561476553,8.21740851,3985.6,3985.5,0.253744]
[1733561476754,4.29122907,3985.6,3985.5,0.253744]
[1733561477256,4.29122907,3985.6,3985.5,0.078364]
[1733561477454,9.19160632,3985.6,3985.5,0.078364]
[1733561478551,4.29122907,3985.6,3985.5,0.078364]
[1733561478954,9.19160632,3985.6,3985.5,0.078364]
[1733561479361,4.29122907,3985.6,3985.5,14.01694735]
[1733561479555,4.29122907,3985.6,3985.5,13.93858254]
[1733561479762,4.29122907,3985.6,3985.5,14.01694748]
[1733561479955,4.29122907,3985.6,3985.5,14.75975144]
[1733561480654,4.29122907,3985.6,3985.5,14.93513144]
[1733561481560,4.29122907,3985.6,3985.5,14.75975144]
[1733561481764,4.29122907,3985.6,3985.5,13.52456942]
[1733561482360,4.29122907,3985.6,3985.5,22.64984858]
[1733561482564,4.29122907,3985.6,3985.5,14.76180553]
[1733561482863,4.29122907,3985.6,3985.5,14.76180714]
[1733561484764,4.29122907,3985.6,3985.5,21.85904244]
[1733561486162,4.29122907,3985.6,3985.5,13.68689169]
[1733561486355,4.29122907,3985.6,3985.5,13.89064932]
[1733561486570,4.29122907,3985.6,3985.5,13.96901764]
[1733561487065,4.29122907,3985.6,3985.5,13.89506441]
[1733561487366,1.08342907,3985.6,3985.5,13.89506441]
[1733561487666,4.29122907,3985.6,3985.5,13.89506441]
[1733561488465,4.29122907,3985.6,3985.5,21.78809768]
[1733561488861,4.29122907,3985.6,3985.5,12.71280537]
[1733561489061,4.29122907,3985.6,3985.5,4.74140378]
[1733561489469,7.23918474,3985.6,3985.5,4.74140378]
[1733561489869,7.23918474,3985.6,3985.5,4.68666596]
[1733561490060,7.23918474,3985.6,3985.5,4.02494248]
[1733561490263,8.21871727,3985.6,3985.5,0.07836832]
[1733561490664,8.04334727,3985.6,3985.2,3.94659183]
[1733561490861,1.08344907,3985.3,3985.2,3.94659183]
[1733561491066,1.74344907,3985.3,3985.2,4.02497346]
[1733561491266,2.56934907,3985.3,3985.2,3.72442804]
[1733561491469,5.51587709,3985.3,3985.2,3.72442804]
[1733561491668,2.56934907,3985.3,3985.2,3.72442804]
[1733561491871,2.56934907,3985.3,3985.2,0.07838163]
[1733561492062,5.51587709,3985.3,3985.2,0.07838163]
[1733561492267,5.71925636,3985.3,3985.2,0.07838163]
[1733561492470,5.5417069,3985.3,3984.8,5.92021508]
[1733561492671,3.38322,3984.9,3984.8,5.92021508]
[1733561492867,3.38322,3984.9,3984.8,10.52260016]
[1733561493472,3.38322,3984.9,3984.8,4.60238508]
[1733561494168,3.38322,3984.9,3984.8,4.60127972]
[1733561494362,3.38322,3984.9,3984.8,0.07838726]
[1733561495178,0.17543,3984.8,3984.7,0.4079]
[1733561495380,5.08193656,3984.8,3984.7,0.4079]
[1733561495969,1.08348907,3984.8,3984.7,0.4079]
[1733561497567,5.00734265,3984.8,3984.7,0.4079]
[1733561499484,4.09928358,3984.8,3984.7,0.4079]
[1733561499672,5.00734265,3984.8,3984.7,0.4079]
[1733561500683,0.90805907,3984.8,3984.7,0.4079]
[1733561500880,1.08348907,3984.8,3984.7,0.4079]
[1733561501079,1.08348907,3984.8,3984.7,0.58333]
[1733561501784,0.90805907,3984.8,3984.7,0.58333]
[1733561502183,0.90805907,3984.8,3984.7,0.78712125]
[1733561502386,3.38322,3984.9,3984.8,0.17543]
[1733561502586,3.38322,3984.9,3984.8,12.69564981]
[1733561503083,3.38322,3984.9,3984.8,4.89966692]
[1733561503880,3.38322,3984.9,3984.8,12.79270019]
[1733561504186,3.38322,3984.9,3984.8,12.87108116]
[1733561505079,3.38322,3984.9,3984.8,12.69565116]
[1733561505277,3.38322,3984.9,3984.8,10.63254954]
[1733561505481,3.38322,3984.9,3984.8,4.72423692]
[1733561505981,3.38322,3984.9,3984.8,4.7243207]
[1733561506887,3.38322,3984.9,3984.8,10.63263332]
[1733561507674,3.38322,3984.9,3984.8,4.7243207]
[1733561509085,0.17543,3984.8,3984.7,6.31621262]
[1733561509287,0.17543,3984.8,3984.7,10.83762893]
[1733561509288,1.08348907,3984.8,3984.7,10.83762893]
[1733561509488,1.08348907,3984.8,3984.7,0.4079]
[1733561509998,0.17543,3984.7,3984.6,0.7913]
[1733561510289,0.56843,3984.7,3984.6,0.7913]
[1733561510588,3.33606157,3984.7,3983.8,0.17547]
[1733561510785,4.29131907,3984.0,3983.9,1.3735242]
[1733561511184,4.29131907,3984.0,3983.9,1.24809392]
[1733561513002,4.29131907,3984.0,3983.9,1.1697]
[1733561517008,5.02391814,3984.0,3982.7,5.90831262]
[1733561517200,3.38329,3983.4,3983.3,0.3794]
[1733561517405,3.38329,3983.4,3983.3,0.58327248]
[1733561518404,3.38329,3983.4,3983.3,0.45781249]
[1733561519606,4.29134907,3983.4,3983.3,0.45781249]
[1733561520508,4.29134907,3983.4,3983.3,0.4578177]
[1733561520906,3.2078,3983.4,3983.3,0.4578177]
[1733561521107,3.2078,3983.4,3983.3,0.58328051]
[1733561521304,3.38329,3983.4,3983.3,0.58328051]
[1733561522416,0.17551,3983.0,3982.7,46.87427213]
[1733561522599,0.17551,3983.0,3982.9,0.4096]
[1733561522805,0.17551,3983.0,3982.9,0.53507125]
[1733561523010,0.17551,3983.0,3982.9,0.61349078]
[1733561523211,0.17551,3983.0,3982.9,0.48801953]
[1733561523608,0.17551,3983.0,3982.9,0.07841953]
[1733561523909,0.17551,3983.0,3982.5,0.8058]
[1733561523910,0.17552,3982.6,3982.5,0.8058]
[1733561524107,4.29137907,3982.6,3982.5,0.88422705]
[1733561524310,0.90805907,3982.6,3982.5,0.8058]
[1733561524507,0.90805907,3982.6,3982.5,0.88422426]
[1733561524707,0.90805907,3982.6,3982.5,0.8058]
[1733561524902,0.90805907,3982.6,3982.5,0.88422661]
[1733561527110,0.90805907,3982.9,3982.5,0.88422661]
[1733561527409,1.08356907,3982.9,3982.6,0.25394661]
[1733561527602,1.08356907,3982.9,3982.6,0.17552]
[1733561528214,1.08356907,3982.9,3982.5,0.8058]
[1733561528411,0.90805907,3982.9,3982.6,0.07842026]
[1733561528616,0.90805907,3982.9,3982.7,0.25394026]
[1733561528912,0.90805907,3982.9,3982.7,0.17552]
[1733561529813,0.1755,3983.0,3982.5,0.8058]
[1733561530010,3.2078,3983.1,3982.7,0.90805907]
[1733561530213,3.2078,3983.1,3983.0,0.1755]
[1733561530409,3.2078,3983.1,3983.0,0.25391895]
[1733561531307,4.11585907,3983.1,3983.0,0.07841895]
[1733561531515,4.29135907,3983.1,3983.0,0.07841895]
[1733561531717,0.17551,3983.0,3982.7,0.17551]
[1733561532013,0.17551,3983.0,3982.5,1.4658]
[1733561532014,0.17551,3982.9,3982.8,0.07841652]
[1733561532404,1.08356907,3982.9,3982.8,0.07841652]
[1733561532614,0.90805907,3982.9,3982.8,0.25392652]
[1733561532817,0.90805907,3982.9,3982.8,0.37939322]
[1733561533204,1.08356907,3982.9,3982.8,0.20388322]
[1733561534418,1.08356907,3982.9,3982.8,0.07841662]
[1733561535910,1.88826907,3982.9,3982.8,0.07841662]
[1733561536111,1.48746907,3982.9,3982.8,0.07841662]
[1733561537512,0.59171,3983.0,3982.8,0.07841662]
[1733561537712,0.90805907,3982.9,3982.8,0.17551]
[1733561537921,0.90805907,3982.9,3982.8,0.37939792]
[1733561538511,3.2078,3983.1,3983.0,0.1755]
[1733561538707,3.2078,3983.1,3983.0,0.37938792]
[1733561541114,3.2078,3983.1,3983.0,0.45780232]
[1733561541319,3.3833,3983.1,3983.0,0.45780232]
[1733561541522,3.3833,3983.1,3983.0,0.37938792]
[1733561541916,3.3833,3983.1,3983.0,0.20388792]
[1733561542422,3.3833,3983.1,3983.0,0.61398792]
[1733561544911,3.3833,3983.1,3983.0,0.20388792]
[1733561545111,3.7742,3983.1,3983.0,0.20388792]
[1733561546418,4.68225907,3983.1,3983.0,0.12547591]
[1733561546721,4.68225907,3983.1,3983.0,0.20389835]
[1733561546922,4.68225907,3983.1,3983.0,0.07842244]
[1733561547414,4.68225907,3983.1,3982.3,0.4024]
[1733561547415,0.17553,3982.4,3982.3,0.4016]
[1733561547620,0.90805907,3982.4,3982.3,0.60550555]
[1733561547824,0.90805907,3982.4,3982.3,0.78104555]
[1733561548818,0.90805907,3982.4,3982.3,0.60550555]
[1733561549021,1.08358907,3982.4,3982.3,0.60550555]
[1733561549319,0.90805907,3982.4,3982.3,0.78104555]
[1733561549824,0.90805907,3982.4,3982.3,0.78104488]
[1733561551216,0.90805907,3982.4,3982.3,41.58104488]
[1733561553219,0.90805907,3982.4,3982.3,0.78104235]
[1733561554023,0.90805907,3982.4,3982.3,1.17924235]
[1733561554927,0.90805907,3982.4,3982.3,1.25766497]
[1733561555115,0.90805907,3982.4,3982.3,14.97155168]
[1733561555425,0.90805907,3982.4,3982.3,14.97075168]
[1733561555620,0.90805907,3982.4,3982.3,14.97155168]
[1733561556418,0.90805907,3982.4,3982.3,1.25766497]
[1733561556623,0.90805907,3982.4,3982.3,24.80740802]
[1733561557022,0.90805907,3982.4,3982.3,24.65056018]
[1733561557230,0.90805907,3982.4,3982.3,24.72978338]
[1733561557532,0.90805907,3982.4,3982.3,24.80820658]
[1733561557830,0.90805907,3982.4,3982.3,24.80740658]
[1733561558030,0.90805907,3982.4,3982.3,24.81485474]
[1733561558528,0.90805907,3982.4,3982.3,14.98360119]
[1733561560126,0.90805907,3982.4,3982.3,14.77970061]
[1733561560331,0.90805907,3982.4,3982.3,14.98360028]
[1733561560820,3.2078,3982.7,3982.6,0.17552]
[1733561561024,3.2078,3982.7,3982.6,14.18458028]
[1733561561225,3.2078,3982.7,3982.6,14.18378028]
[1733561561427,3.2078,3982.7,3982.6,14.19760238]
[1733561562125,3.2078,3982.7,3982.6,5.03776254]
[1733561562325,3.2078,3982.7,3982.6,12.92660656]
[1733561562626,3.2078,3982.7,3982.6,22.09255894]
[1733561563033,3.2078,3983.1,3983.0,0.1755]
[1733561563333,4.11585907,3983.1,3983.0,4.96234334]
[1733561563532,4.11585907,3983.1,3983.0,10.88110867]
[1733561564336,4.11585907,3983.1,3983.0,4.96234334]
[1733561564628,4.11585907,3983.1,3983.0,10.88110867]
[1733561566133,4.11585907,3983.1,3983.0,10.88070377]
[1733561567139,4.11585907,3983.1,3983.0,10.6768041]
[1733561567434,4.11585907,3983.1,3983.0,10.88067596]
[1733561569134,3.2078,3983.9,3983.0,32.75812166]
[1733561569328,3.2078,3983.9,3983.8,0.17547]
[1733561569532,3.2078,3983.9,3983.8,10.87530028]
[1733561569842,0.90805907,3984.0,3983.9,0.17547]
[1733561570037,0.90805907,3984.0,3983.9,5.03807023]
[1733561570234,0.90805907,3984.0,3983.9,14.19815635]
[1733561570433,0.90805907,3984.0,3983.9,24.05921137]
[1733561570738,0.3894,3984.5,3984.4,0.17544]
[1733561570939,0.3894,3984.5,3984.4,4.9571925]
[1733561571437,0.3894,3984.5,3984.4,5.11397091]
[1733561571633,5.17226553,3984.7,3984.6,0.17543]
[1733561571834,5.17226553,3984.7,3984.6,0.37930186]
[1733561572138,0.407,3985.0,3984.9,0.17542]
[1733561572438,0.407,3985.0,3984.9,0.25383225]
[1733561573033,0.65784094,3985.0,3984.9,0.25383225]
[1733561573233,0.407,3985.0,3984.9,0.37924094]
[1733561573438,0.407,3985.0,3984.9,0.25383225]
[1733561574431,0.01021,3985.1,3985.0,0.17542]
[1733561574642,0.01021,3985.1,3985.0,11.03248693]
[1733561574839,0.01021,3985.1,3985.0,5.1234732]
[1733561575346,0.01021,3985.1,3985.0,11.42168108]
[1733561575642,0.01021,3985.1,3985.0,5.52319805]
[1733561576246,0.01021,3985.1,3985.0,11.41382672]
[1733561576440,0.01021,3985.1,3985.0,11.05326565]
[1733561576633,0.01021,3985.1,3985.0,5.52312285]
[1733561576933,0.01021,3985.1,3985.0,5.52312363]
[1733561577339,0.01021,3985.1,3985.0,0.9395033]
[1733561577546,0.01021,3985.1,3985.0,0.78277143]
[1733561577740,0.01021,3985.1,3985.0,0.65738593]
[1733561580652,0.01021,3985.1,3985.0,0.57902]
[1733561581745,0.01021,3985.1,3985.0,0.17542]
[1733561582844,0.01021,3985.1,3984.6,0.3944]
[1733561583053,0.18562,3985.1,3984.9,0.17542]
[1733561583247,2.13988553,3985.0,3984.8,0.17543]
[1733561583448,2.13988553,3985.0,3984.8,0.17542]
[1733561583949,2.13988553,3985.0,3984.4,0.4028]